Cogmind - Beta 13 @@@ ROGUE MODE // 2024.05.04 @ 14:35:04 Player: WarMechanic Result: Destroyed by JW-MCE(R) with Subdweller Laser Performance ------------- Evolutions (0) 0 Regions Visited (2) 400 Robots Destroyed (34) 170 Value Destroyed (590) 590 Prototype IDs (0) 0 Alien Tech Used (0) 0 Bonus (-59) -59 TOTAL SCORE: 1101 Bonus ------- Friendly Fire -59 Cogmind --------- Core Integrity 0/250 Matter 130/300 Energy 100/100 System Corruption 0% Temperature Cool (6) Movement Rolling (210) Ox10 Location -10/Subcaves Parts ------- > --- POWER (1) -------- (None) > --- PROPULSION (2) --- Light Treads Subdweller Monowheel > --- UTILITY (2) ------ Humpback > --- WEAPON (2) ------- Heavy Assault Rifle Heavy Assault Rifle > --- INVENTORY (35) --- Subdweller Power Source Subdweller Power Source Subdweller Monowheel Subdweller Monowheel Subdweller Monowheel Humpback Seismic Detector Armor Integrity Analyzer Light Armor Plating Scrap Shield Hacking Suite Makeshift Hacking Suite Tractor Beam Heavy Assault Rifle Heavy Assault Rifle Battle Rifle Battle Rifle Subdweller Machine Gun Subdweller Machine Gun Light Cannon Light Cannon Grenade Launcher Grenade Launcher Rocket Launcher Rocket Launcher Rocket Launcher Rocket Launcher Datajack Datajack Mining Laser Peak State ------------ > --- POWER ------------ Light Nuclear Core > --- PROPULSION ------- Light Treads Subdweller Monowheel > --- UTILITY ---------- Humpback > --- WEAPON ----------- Heavy Assault Rifle Heavy Assault Rifle > --- INVENTORY -------- Ion Engine Light Ion Engine Light Treads Light Treads Subdweller Monowheel Subdweller Monowheel Subdweller Monowheel Huge Storage Unit Seismic Detector Armor Integrity Analyzer Light Armor Plating Scrap Shield Hacking Suite Tractor Beam Heavy Assault Rifle Heavy Assault Rifle Battle Rifle Battle Rifle Subdweller Machine Gun Light Cannon Light Cannon Grenade Launcher Grenade Launcher Rocket Launcher Rocket Launcher Rocket Launcher Rocket Launcher Datajack Datajack Mining Laser [Rating: 17] Favorites ----------- Power Light Nuclear Core Engine Subdweller Power Source Power Core Light Nuclear Core Propulsion Light Treads Treads Light Treads Wheel Subdweller Monowheel Utility Huge Storage Unit Device Improved Terrain Scanner Storage Huge Storage Unit Weapon Heavy Assault Rifle Ballistic Gun Heavy Assault Rifle Launcher Grenade Launcher Special Weapon Mining Laser Build | -11 -10 -10 ------- Run | Yrd Mat Sub Slots Evolved . | . . . Power . | . . . Propulsion . | . . . Utility . | . . . Weapon . | . . . Parts Attached 32 | 9 12 11 Power 6 | 2 2 2 Engine 4 | 2 . 2 Core 2 | . 2 . Reactor . | . . . Propulsion 7 | 2 1 4 Treads 4 | 2 . 2 Leg . | . . . Wheel 3 | . 1 2 Hover . | . . . Flight . | . . . Utility 6 | 3 2 1 Device 2 | 1 1 . Storage 4 | 2 1 1 Processor . | . . . Hackware . | . . . Protection . | . . . Artifact . | . . . Weapon 13 | 2 7 4 Energy Gun . | . . . Energy Cannon . | . . . Ballistic Gun 8 | 2 4 2 Ballistic Cannon . | . . . Launcher 2 | . 2 . Special Weapon 3 | . 1 2 Impact Weapon . | . . . Slashing Weapon . | . . . Piercing Weapon . | . . . Special Melee Weapon . | . . . Unidentified Prototypes . | . . . Parts Lost 5 | . 2 3 Power 3 | . 1 2 Propulsion 2 | . 1 1 Utility . | . . . Weapon . | . . . Highest Loss Streak 2 | . 2 2 To Critical Strikes . | . . . Average Slot Usage (%) 92 | . 99 86 Engine 2 | . 1 4 Core 10 | . 12 9 Treads 17 | . 22 14 Wheel 9 | . 5 14 Device 7 | . 14 1 Storage 14 | . 14 14 Ballistic Gun 25 | . 24 26 Special Weapon 2 | . 2 1 Naked Turns . | . . . Heaviest Build 211 | 15 92 211 Greatest Support 40 | 40 40 20 Greatest Overweight (x) 21 | . 9 21 Average Overweight (x) 6 | . 4 10 Largest Inventory Capacity 35 | 8 25 35 Average Capacity 26 | 7 22 33 Most Carried 35 | 8 25 35 Average Carried 23 | 5 17 32 Final Capacity 35 | 8 25 35 Final Carried 32 | 8 25 32 Class Distribution -------------------- 56% | Mutant 43% | Hauler-Mutant Dominant Class ---------------- Mutant | -10/Materials Hauler-Mutant | -10/Subcaves Resources | -11 -10 -10 ----------- Run | Yrd Mat Sub Matter Collected 1143 | 446 489 208 Remotely . | . . . Salvage Created 1046 | 308 554 184 Parts 73 | 27 33 13 Haulers Intercepted 1 | . 1 . Recyclers Shooed 2 | . 2 . Parts Field Recycled . | . . . Retrieved Matter . | . . . Parts Self-Destructed 4 | . . 4 Prevented . | . . . Kills | -11 -10 -10 ------- Run | Yrd Mat Sub Combat Hostiles Destroyed 12 | . 8 4 Guns 8 | . 4 4 AOE 4 | . 4 . Classes Destroyed 7 | 3 3 1 Worker 6 | 4 2 . Tunneler 11 | 9 2 . Hauler 1 | . 1 . Recycler 3 | 1 2 . Operator 1 | . 1 . Grunt 8 | . 8 . Subdweller 4 | . . 4 Best Kill Streak 5 | 5 2 2 Combat Bots Only 2 | . 2 2 Max Kills in Single Turn 2 | 1 2 1 Gunslinging . | . . . Exploded 2 | . 2 . Melee . | . . . Uniques/NPCs Destroyed . | . . . Combat | -11 -10 -10 -------- Run | Yrd Mat Sub Hostile Shots Fired 110 | . 55 55 Missed 36 | . 19 17 Damage Taken 1521 | . 575 946 Core 256 | . 195 61 Absorbed by Shields . | . . . Core Remaining (%) 100 | 100 . . Volleys Fired 155 | 26 78 51 Largest 2 | 2 2 2 Hottest 100 | 40 100 100 Shots Fired 279 | 52 134 93 Gun 260 | 52 118 90 Cannon . | . . . Launcher 4 | . 4 . Special 15 | . 12 3 Kinetic 260 | 52 118 90 Thermal 15 | . 12 3 Explosive 4 | . 4 . Electromagnetic . | . . . Robot Hit Streak 18 | 12 9 18 Robot Miss Streak 4 | 4 4 4 Penetration Max . | . . . Secondary Targets 2 | . 1 1 Max Gunslinging Chain 1 | . 1 1 Shots Hit Robots 179 | 31 76 72 Core Hits 47 | 15 27 5 Critical Kills . | . . . Critical Parts Destroyed 1 | . 1 . Critical Strikes 1 | . 1 . Destroy 1 | . 1 . Melee Attacks . | . . . Impact . | . . . Slashing . | . . . Piercing . | . . . Sneak Attacks . | . . . Combat Hostiles . | . . . Follow-up Attacks . | . . . Damage Inflicted 2094 | 399 1244 451 Guns 1758 | 399 917 442 Cannons . | . . . Explosions 277 | . 277 . Melee . | . . . Ramming 35 | . 26 9 Kinetic 1758 | 399 917 442 Thermal 24 | . 24 . Explosive 277 | . 277 . Electromagnetic . | . . . Impact . | . . . Slashing . | . . . Piercing . | . . . Highest Corruption . | . . . Average Corruption . | . . . Corruption Purged . | . . . Corruption Blocked . | . . . Overload Shots . | . . . Overflow Damage . | . . . Projectiles . | . . . Explosions . | . . . Melee . | . . . Knockbacks . | . . . Impact . | . . . Kinetic . | . . . Secondary . | . . . Self-Inflicted Damage 17 | . 13 4 Shots . | . . . Rammed 2 | . 1 1 Targets Rammed 2 | . 1 1 Kicked . | . . . Crushed . | . . . Highest Temperature 236 | 6 236 . Average Temperature 110 | 6 113 . Received Heat Transfer 507 | . 285 222 Siege Activations . | . . . Robots Corrupted . | . . . Combat Hostiles . | . . . Parts Fried . | . . . Impact Corruptions . | . . . Robots Melted . | . . . Combat Hostiles . | . . . Parts Melted . | . . . Heat Transferred 50 | . 50 . Parts Sabotaged . | . . . Parts Stolen . | . . . Parts Stripped . | . . . Power Chain Reactions . | . . . Alert | -11 -10 -10 ------- Run | Yrd Mat Sub Peak Influence 184 | 70 184 . Initial . | . . . Average 70 | 35 75 . Maximum Alert Level . | . . . Low Security (%) 100 | 100 100 . Level 1 . | . . . Level 2 . | . . . Level 3 . | . . . Level 4 . | . . . Level 5 . | . . . High Security . | . . . Max Security . | . . . Squads Dispatched 2 | . 2 . Investigation 1 | . 1 . Extermination . | . . . Reinforcement 1 | . 1 . Assault . | . . . Garrison . | . . . Intercept . | . . . Searches Triggered . | . . . Construction Impeded . | . . . Haulers Reinforced . | . . . Active Scanning Responses . | . . . Cargo Convoy Interrupts . | . . . Stealth | -11 -10 -10 --------- Run | Yrd Mat Sub Distress Signals 2 | . 2 . Communications Jammed . | . . . Distress Signals . | . . . Times Spotted 48 | . 37 11 Peak Tracking Total 5 | . 5 5 Tactical Retreats 8 | . 8 . Traps | -11 -10 -10 ------- Run | Yrd Mat Sub Traps Triggered 1 | . . 1 Indirectly . | . . . Trap Hack Attempts . | . . . Triggered . | . . . Disarmed . | . . . Reprogrammed . | . . . Reused . | . . . Traps Extracted . | . . . Installed . | . . . Triggered . | . . . Machines | -11 -10 -10 ---------- Run | Yrd Mat Sub Machines Disabled . | . . . Max in Single Turn . | . . . Machines Repaired . | . . . Machines Dismantled . | . . . Machines Sabotaged . | . . . Overloaded Fab Kills . | . . . Hacking | -11 -10 -10 --------- Run | Yrd Mat Sub Machines Accessed 8 | . 8 . Terminals 7 | . 7 . Fabricators . | . . . Repair Stations . | . . . Recycling Units 1 | . 1 . Scanalyzers . | . . . Garrison Access . | . . . Total Hacks 21 | . 21 . Successful 5 | . 5 . Failed 16 | . 16 . Catastrophic 6 | . 6 . Database Lockouts . | . . . Manual 16 | . 16 . Terminals 18 | . 18 . Fabricators . | . . . Repair Stations . | . . . Recycling Units 3 | . 3 . Scanalyzers . | . . . Garrison Access . | . . . Terminal Hacks 3 | . 3 . Terminal Index 1 | . 1 . Dispatch Records 1 | . 1 . Maintenance Status 1 | . 1 . Fabricator Hacks . | . . . Repair Station Hacks . | . . . Recycling Unit Hacks 2 | . 2 . Report Inventory 1 | . 1 . Retrieve Components 1 | . 1 . Scanalyzer . | . . . Garrison Access Hacks . | . . . Unauthorized Hacks . | . . . Terminals . | . . . Fabricators . | . . . Repair Stations . | . . . Recycling Units . | . . . Scanalyzers . | . . . Garrison Access . | . . . Data Cores Recovered . | . . . Used . | . . . Hacking Detections 8 | . 8 . Full Trace Events 3 | . 3 . Feedback Events . | . . . Feedback Blocked . | . . . Robot Schematics Acquired . | . . . Robots Built . | . . . Authchips . | . . . Time . | . . . Total Robot Build Rating . | . . . Part Schematics Acquired . | . . . Parts Built . | . . . Authchips . | . . . Time . | . . . Total Part Build Rating . | . . . Parts Repaired . | . . . Time . | . . . Parts Recycled . | . . . Recycled Matter . | . . . Retrieved Matter . | . . . Retrieved Components 1 | . 1 . Parts Scanalyzed . | . . . Part Schematics Acquired . | . . . Parts Damaged . | . . . Bothacking | -11 -10 -10 ------------ Run | Yrd Mat Sub Used RIF Installer . | . . . Robots Hacked . | . . . Non-combat . | . . . Combat . | . . . Robot Hacks Applied . | . . . Relay Couplers Released . | . . . Fabnet Peak Effective % . | . . . Robots Rewired . | . . . Allies Hacked . | . . . Hacks Repelled . | . . . Allies | -11 -10 -10 -------- Run | Yrd Mat Sub Total Allies . | . . . Largest Group . | . . . Highest-Rated Group . | . . . Highest-Rated Ally . | . . . Total Orders . | . . . Ally Attacks . | . . . Total Damage . | . . . Kills . | . . . Allies Corrupted . | . . . Allies Melted . | . . . Intel | -11 -10 -10 ------- Run | Yrd Mat Sub Robot Analysis Total . | . . . Derelict Logs Recovered . | . . . Drone Launches . | . . . Drone Recoveries . | . . . Exploration | -11 -10 -10 ------------- Run | Yrd Mat Sub Turns Passed 5672 | 407 2547 2718 Spaces Moved 2008 | 194 936 878 Core 7 | 7 . . Treads 652 | 187 465 . Legs . | . . . Wheels 1349 | . 471 878 Hover . | . . . Flight . | . . . Fastest Speed 50 | 50 160 210 Average Speed 223 | 156 239 222 Slowest Speed 480 | 160 480 395 Overloaded Moves . | . . . Propulsion Burnouts . | . . . Robots Hopped . | . . . Cave-ins Triggered . | . . . Exploration Rate (%) 50 | 8 94 49 Regions Visited 2 Branch Regions 1 Pre-discovered Areas 1 | . . 1 Known Exits Taken . | . . . Unknown Exits Taken 2 | 1 1 . Scrap Searched 5 | . . 5 Spaces Dug . | . . . Terrain Destroyed 28 | . 28 . Melee . | . . . Projectile . | . . . AOE 28 | . 28 . Terrain Rammed . | . . . Walls Destroyed . | . . . Machines Disabled . | . . . Actions | -11 -10 -10 --------- Run | Yrd Mat Sub Total 2880 | 247 1090 1543 Wait 556 | . 10 546 Move 2006 | 193 935 878 Hop . | . . . Pick Up 94 | 17 36 41 Fast Attach . | . . . Attach 15 | 8 3 4 Detach 1 | . 1 . Swap 17 | 1 9 7 Drop 34 | 2 17 15 Fire 155 | 26 78 51 Melee . | . . . Ram 2 | . 1 1 Kick . | . . . Crush . | . . . Escape Stasis . | . . . Rewire . | . . . Trap . | . . . Miscellaneous . | . . . Route ------- -11/Scrapyard -10/Materials (discovered 5 exits: [*Mat x3] / [*Min] / [*Sub]) -10/Subcaves History --------- Turn | Location | Event 11 | -11/Scrapyard | Discovered new exit (range 15) 408 | -11/Scrapyard | Entered Materials 409 | -10/Materials | Build established: Mutant 937 | -10/Materials | Discovered new exit (range 16) 1235 | -10/Materials | Discovered new exit (range 10) 1576 | -10/Materials | Discovered new exit (range 11) 1875 | -10/Materials | Discovered new exit (range 13) 1905 | -10/Materials | Core integrity fell below 50% 2650 | -10/Materials | Discovered new exit (range 7) 2955 | -10/Materials | Entered Subcaves 3135 | -10/Subcaves | Ambushed by swarm of Subdwellers 3184 | -10/Subcaves | Learned location of Zion (-7) 3184 | -10/Subcaves | Met a Zionite searching for "candidates" 3522 | -10/Subcaves | Build established: Hauler-Mutant 4009 | -10/Subcaves | Shifting Twisted Machinery released Sub. Monowheel 4031 | -10/Subcaves | Shifting Twisted Machinery released Sub. Laser 5399 | -10/Subcaves | Disturbed a concealed Subdweller 5598 | -10/Subcaves | Core integrity fell below 20% 5673 | -10/Subcaves | Destroyed by JW-MCE(R) with Subdweller Laser Last Messages --------------- 05427_ Found Mak. Hacking Suite. 05427_ Found Humpback. 05427_ Found 31 Matter. 05428_ Acquired 1 matter. 05431_ Acquired Mak. Hacking Suite. 05432_ Dropped Huge Storage Unit. 05432_ Dropped Ion Engine. 05435_ Acquired Humpback. 05440_ Dropped Lgt. Treads. 05441_ Acquired Sub. Monowheel. 05449_ Subatomizers dissect the Disposable Heat Sink. 05483_ Sub. Power Source shoots sparks and powers down. 05484_ Dropped Broken Sub. Power Source. 05500_ Sub. Monowheel shoots sparks and powers down. 05503_ Dropped Broken Sub. Monowheel. 05647_ Lgt. Ion Engine destroyed. 05661_ Lgt. Treads destroyed. Map ----- +----------------------------------------------------+ | ?????????????????????????????????????????? | | ?????????????????????????????????????????? | | ?????????????????????????????????????????? | | ?????????????????????????????????????????? | | ???????????????????????????????? ????????? | | ?????????????????????????????? ????????? | | ????????????????????????????? ????????? | | ?????????????????????????????? ????????? | | ?????????????????????????????? ???????? | | ??????????????????????????????# ???????? | | ??????????????????????????????# ???????? | | ??????????????????????????????# ???????? | | ???????????????????????????#### ???????? | | ????????????????###???????## ???????? | | ???????????????## ??????## ##?????? | | ???????????????# ??????# ###???? | | ???????????????# ??????# ###?? | | ??????????????## ???????# #? ##? | | ??????????????# ##??????# ##??# ## | | ??????????????# ######## #### # | | ???????????????# ## # | | ???????????????# | | ????????????????# ## | | ????????????????# ## ### | | ????????????##### ## ### #?## | | ????????????# @ #??# ##?## | | ????????????## ##?## #??##### | | ?????????????#R # #### #??????# | | ???????????? # ######??## | | ?????????? ##